Cogmind - Beta 14 @@@ ROGUE MODE // 2024.08.18 @ 13:08:47 Player: THN-L0C Result: Destroyed by S-43 Plague with Heavy Machine Gun Performance ------------- Evolutions (9) 4500 Regions Visited (19) 3800 Robots Destroyed (134) 670 Value Destroyed (5506) 5506 Prototype IDs (46) 920 Alien Tech Used (1) 200 Bonus (2191) 2191 TOTAL SCORE: 17787 Bonus ------- High Alert Combat Kills 183 Follower Combat Kills 434 Registered with UFD 300 Met Data Miner 300 Met Warlord at Base 500 MAIN.C Attacked Warlord 500 Friendly Fire -26 Cogmind --------- Core Integrity 0/1600 Matter 275/300 Energy 36/100 System Corruption 14% Temperature Cool (0) Movement Core (150) Ox2 Location -1/Access Parts ------- > --- POWER (2) -------- (None) > --- PROPULSION (6) --- (None) > --- UTILITY (15) ----- Makeshift Terrain Scan Processor Advanced Melee Analysis Suite Improved Target Analyzer > --- WEAPON (3) ------- Enhanced Force Lance > --- INVENTORY (5) ---- Advanced Sensor Array Long-range Terrain Scanner Advanced ECM Suite Improved Energy Mantle Peak State ------------ > --- POWER ------------ Micro Fission Core Micro Fission Core > --- PROPULSION ------- Field Propulsion Drive Improved Diametric Drive Flightbrick > --- UTILITY ---------- Advanced Power Amplifier Advanced Power Amplifier Advanced Visual Processing Unit Long-range Terrain Scanner Makeshift Terrain Scan Processor Advanced Melee Analysis Suite Advanced Melee Analysis Suite Improved Target Analyzer Improved Force Booster Advanced Transmission Jammer Advanced ECM Suite Experimental Cloaking Device Improved System Shield Ghost Barrier > --- WEAPON ----------- Spear Vortex Lance Vortex Lance > --- INVENTORY -------- Gravity Neutralizer Improved Energy Mantle Mini Drone Bay [Rating: 172] Favorites ----------- Power Makeshift Power Source Engine Makeshift Power Source Power Core Neutrino Core Reactor Light Quantum Reactor Propulsion Overtuned Huge Scrapsphere Treads Improved Treads Leg Advanced VSS Leg Wheel Overtuned Huge Scrapsphere Hover Unit Airjet Flight Unit Flightbrick Utility Large Storage Unit Device Scrap Suit Storage Large Storage Unit Processor Advanced Signal Interpreter Hackware Ghost Barrier Protection Enhanced Scrap Shield Weapon Powered Cannon Energy Gun Overtuned Beamcaster Energy Cannon Powered Cannon Ballistic Gun Minigun Ballistic Cannon Flak Cannon Launcher Scatter Rocket Array Special Weapon Molecular Deconstructor Slashing Weapon Chainsword Piercing Weapon Lance Build | -11 -10 -10 -10 -8 -8 -6 -6 -6 -6 -5 -5 -5 -5 -5 -4 -4 -3 -2 -1 ------- Run | Yrd Mat Min Sub Rec Scr Fac Low Low Dat Pro Fac Upp Upp War Pro Fac Res Res Acc Slots Evolved 15 | . . . . . . 8 . . . . 2 . . . . 2 2 1 . Power 1 | . . . . . . . . . . . 1 . . . . . . . . Propulsion 4 | . . . . . . 2 . . . . . . . . . 2 . . . Utility 9 | . . . . . . 5 . . . . 1 . . . . . 2 1 . Weapon 1 | . . . . . . 1 . . . . . . . . . . . . . Parts Attached 289 | 8 25 7 28 . 6 15 14 14 . 48 25 9 15 21 16 11 10 7 10 Power 27 | 1 4 2 1 . . 1 1 . . 2 7 . 1 5 1 . . . 1 Engine 12 | 1 1 2 1 . . 1 1 . . 1 2 . 1 1 . . . . . Core 13 | . 3 . . . . . . . . 1 5 . . 3 1 . . . . Reactor 2 | . . . . . . . . . . . . . . 1 . . . . 1 Propulsion 30 | 2 6 . 6 . 3 5 . . . 1 2 . . . . 1 3 1 . Treads 8 | . 2 . 2 . . 3 . . . 1 . . . . . . . . . Leg 1 | . . . . . . . . . . . . . . . . . . 1 . Wheel 12 | 2 4 . 4 . 2 . . . . . . . . . . . . . . Hover 2 | . . . . . 1 . . . . . . . . . . . 1 . . Flight 7 | . . . . . . 2 . . . . 2 . . . . 1 2 . . Utility 167 | 2 7 2 9 . 3 6 11 12 . 37 13 6 11 9 11 10 7 6 5 Device 125 | 1 6 1 3 . 2 3 10 12 . 32 8 5 7 4 9 9 6 3 4 Storage 5 | 1 1 . . . 1 . . . . . 1 1 . . . . . . . Processor 14 | . . . . . . 2 . . . . 2 . 2 4 2 . . 2 . Hackware 2 | . . . . . . . . . . . . . . 1 . 1 . . . Protection 21 | . . 1 6 . . 1 1 . . 5 2 . 2 . . . 1 1 1 Artifact . | . . . . . . . . . . . . . . . . . . . . Weapon 65 | 3 8 3 12 . . 3 2 2 . 8 3 3 3 7 4 . . . 4 Energy Gun 18 | 2 5 2 2 . . . . . . 2 1 2 . 2 . . . . . Energy Cannon 2 | . . . 1 . . . . . . . 1 . . . . . . . . Ballistic Gun 2 | 1 . . 1 . . . . . . . . . . . . . . . . Ballistic Cannon 4 | . . . 4 . . . . . . . . . . . . . . . . Launcher 12 | . 1 1 4 . . 1 1 1 . 3 . . . . . . . . . Special Weapon 7 | . 2 . . . . . . . . . 1 . 2 1 1 . . . . Impact Weapon . | . . . . . . . . . . . . . . . . . . . . Slashing Weapon 3 | . . . . . . . . 1 . . . . 1 1 . . . . . Piercing Weapon 17 | . . . . . . 2 1 . . 3 . 1 . 3 3 . . . 4 Special Melee Weapon . | . . . . . . . . . . . . . . . . . . . . Unidentified Prototypes 18 | . 1 . . . . 3 1 . . 1 1 . 1 7 1 2 . . . Parts Lost 45 | . 1 . 8 . . 2 . . . 2 12 . 1 . 1 . 3 . 15 Power 9 | . . . 1 . . 1 . . . . 4 . . . . . . . 3 Propulsion 7 | . . . 3 . . . . . . . 1 . . . . . 1 . 2 Utility 20 | . . . 1 . . . . . . 1 5 . 1 . 1 . 1 . 10 Weapon 9 | . 1 . 3 . . 1 . . . 1 2 . . . . . 1 . . Highest Loss Streak 12 | . 1 . 3 . . 1 . . . 1 7 . 1 . 1 . 3 . 12 To Critical Strikes . | . . . . . . . . . . . . . . . . . . . . Average Slot Usage (%) 78 | . 98 100 99 75 74 80 73 73 73 74 52 48 52 65 83 81 83 76 68 Engine 6 | . 7 6 13 12 12 10 6 6 6 . . 5 5 4 . . . . . Core 3 | . 6 7 . . . . . . . 5 7 5 5 5 9 8 8 7 5 Treads 9 | . 3 28 15 12 11 12 13 13 13 6 2 . . . . . . . . Wheel 7 | . 23 . 12 12 11 6 6 6 6 6 3 . . . . . . . . Device 15 | . 14 3 11 . 9 18 13 13 13 20 12 19 18 24 20 21 22 16 16 Storage 7 | . 14 14 13 12 12 6 6 6 6 6 4 . . . . . . . . Processor 5 | . . . . . . 6 6 6 6 6 5 . 4 13 29 22 20 22 24 Protection 2 | . . 10 2 12 2 6 6 6 6 2 . . 2 1 . . 1 2 . Energy Gun 4 | . 24 28 11 . . . . . . 4 2 9 5 . . . . . . Energy Cannon 4 | . . . . 12 12 6 6 6 6 1 . . . . . . . . . Launcher 2 | . . . 6 . . . . . . 5 1 . . . . . . . . Piercing Weapon 3 | . . . . . . 5 5 . . 5 3 5 5 5 13 13 11 7 4 Peak Build Rating 172 | 7 16 20 32 32 42 84 85 85 81 91 98 89 100 138 146 155 172 161 162 Average Rating 66 | 4 12 19 20 32 32 79 82 81 81 87 71 82 84 103 137 152 163 156 136 On Entrance 77 | . 7 16 19 32 32 42 79 83 81 81 88 61 85 100 138 143 153 153 161 Naked Turns 67 | . . . . . . . . . . . 67 . . . . . . . . Heaviest Build 82 | 12 32 36 40 36 36 57 60 61 55 74 82 40 41 46 38 30 37 32 36 Greatest Support 70 | 32 46 46 46 12 23 20 20 43 43 20 70 33 33 33 33 43 43 31 31 Greatest Overweight (x) 11 | 1 10 . 3 2 11 2 2 3 2 3 9 1 2 1 1 . . 1 2 Average Overweight (x) 1 | . . . . 2 1 2 2 1 1 2 . . . . . . . . . Largest Inventory Capacity 15 | 8 15 15 15 15 15 15 15 15 15 15 15 5 5 5 5 5 5 5 5 Average Capacity 13 | 6 14 15 15 15 15 15 15 15 15 15 11 5 5 5 5 5 5 5 5 Most Carried 15 | 2 15 15 15 15 15 15 15 15 15 15 15 5 5 5 5 5 5 5 5 Average Carried 13 | 1 12 14 14 15 13 13 14 15 15 14 9 4 4 4 4 4 4 4 4 Final Capacity 15 | 8 15 15 15 15 15 15 15 15 15 15 5 5 5 5 5 5 5 5 5 Final Carried 15 | 2 15 15 15 15 15 15 15 15 15 15 5 5 5 5 5 5 5 5 4 Class Distribution -------------------- 46% | Mutant 39% | Scrapper 3% | Hacker-Ninja 3% | Scavenger-Gladiator Dominant Class ---------------- Mutant | -10/Materials Mutant | -10/Mines Mutant | -10/Subcaves Mutant | -8/Recycling Mutant | -8/Scraptown Scrapper | -6/Factory Scrapper | -6/Lower Caves Scrapper | -6/Lower Caves Scrapper | -6/Data Miner Scrapper | -5/Proximity Caves Mutant | -5/Factory Derelict-Mutant | -5/Upper Caves Commander-Mutant | -5/Upper Caves Derelict-Gladiator | -5/Warlord Scavenger-Gladiator | -4/Proximity Caves Hacker-Ninja | -4/Factory Hacker-Ninja | -3/Research Hacker-Ninja | -2/Research Hacker-Ninja | -1/Access Resources | -11 -10 -10 -10 -8 -8 -6 -6 -6 -6 -5 -5 -5 -5 -5 -4 -4 -3 -2 -1 ----------- Run | Yrd Mat Min Sub Rec Scr Fac Low Low Dat Pro Fac Upp Upp War Pro Fac Res Res Acc Matter Collected 4611 | 254 415 170 618 . 87 53 501 323 . 870 208 113 233 269 163 . 232 32 70 Remotely . | . . . . . . . . . . . . . . . . . . . . Salvage Created 6285 | 28 403 112 611 . . 101 72 698 . 1451 753 . 746 . 293 . 599 184 234 Parts 282 | 4 23 10 44 . . 15 . 19 . 52 34 . 17 . 16 . 32 6 10 Haulers Intercepted 1 | . . . . . . . . . . 1 . . . . . . . . . Recyclers Shooed . | . . . . . . . . . . . . . . . . . . . . Parts Field Recycled . | . . . . . . . . . . . . . . . . . . . . Retrieved Matter . | . . . . . . . . . . . . . . . . . . . . Parts Self-Destructed 98 | . . . 24 . . . . 6 . 48 . 1 8 . 11 . . . . Prevented . | . . . . . . . . . . . . . . . . . . . . Kills | -11 -10 -10 -10 -8 -8 -6 -6 -6 -6 -5 -5 -5 -5 -5 -4 -4 -3 -2 -1 ------- Run | Yrd Mat Min Sub Rec Scr Fac Low Low Dat Pro Fac Upp Upp War Pro Fac Res Res Acc Combat Hostiles Destroyed 119 | . 11 5 22 . . 1 . 16 . 35 8 . 2 . 6 . 10 . 3 Melee 39 | . . . 1 . . 1 . 4 . 5 8 . 2 . 5 . 10 . 3 Guns 20 | . 11 2 5 . . . . . . 2 . . . . . . . . . Cannons 14 | . . . 6 . . . . 1 . 7 . . . . . . . . . AOE 41 | . . 3 8 . . . . 9 . 21 . . . . . . . . . Classes Destroyed 17 | 1 3 . 1 . . 3 . 2 . 3 2 . 1 . 1 . . . . Worker 3 | . . . . . . 2 . . . . . . . . . . 1 . . Builder 1 | . . . . . . 1 . . . . . . . . . . . . . Tunneler 1 | 1 . . . . . . . . . . . . . . . . . . . Hauler 1 | . . . . . . . . . . 1 . . . . . . . . . Recycler 4 | . . . . . . . . . . . 2 . . . . . 1 1 . Minesweeper 1 | . . . . . . . . . . . . . . . 1 . . . . Drone 4 | . . . . . . . . . . 2 . . . . 2 . . . . Watcher 4 | . 1 . . . . . . . . . . . . . . . . 2 1 Swarmer 28 | . 3 3 6 . . . . 4 . 9 . . . . . . 3 . . Grunt 46 | . 8 2 . . . . . 9 . 20 4 . . . 1 . 1 . 1 Brawler 3 | . . . . . . . . 1 . 2 . . . . . . . . . Duelist 1 | . . . . . . . . . . . 1 . . . . . . . . Sentry 5 | . . . . . . . . 2 . 1 . . 1 . 1 . . . . Hunter 1 | . . . . . . . . . . 1 . . . . . . . . . Programmer 13 | . . . . . . 1 . . . . 2 . . . 2 . 6 . 2 Subdweller 16 | . . . 16 . . . . . . . . . . . . . . . . Packrat 2 | . . . . . . . . . . . . . 1 . 1 . . . . Thug 1 | . . . . . . . . . . . 1 . . . . . . . . Mutant 1 | . . . . . . . . . . . . . 1 . . . . . . Best Kill Streak 6 | 1 4 3 4 . . 2 . 6 . 5 5 . 1 . 2 . 4 2 3 Combat Bots Only 6 | . 4 3 4 . . 1 . 6 . 5 3 . 1 . 2 . 3 . 3 Max Kills in Single Turn 5 | 1 1 2 3 . . 1 . 4 . 5 1 . 1 . 1 . 1 1 1 Gunslinging . | . . . . . . . . . . . . . . . . . . . . Exploded 5 | . . 2 3 . . . . 4 . 5 . . . . . . . . . Melee 1 | . . . 1 . . 1 . 1 . 1 1 . 1 . 1 . 1 . 1 Uniques/NPCs Destroyed . | . . . . . . . . . . . . . . . . . . . . Combat | -11 -10 -10 -10 -8 -8 -6 -6 -6 -6 -5 -5 -5 -5 -5 -4 -4 -3 -2 -1 -------- Run | Yrd Mat Min Sub Rec Scr Fac Low Low Dat Pro Fac Upp Upp War Pro Fac Res Res Acc Hostile Shots Fired 975 | . 36 13 102 . . 21 . 74 . 138 208 5 28 . 39 25 70 24 192 Missed 343 | . 8 6 32 . . 7 . 30 . 35 67 4 10 . 11 14 26 14 79 Damage Taken 11596 | . 305 82 1506 . . 146 . 529 . 1584 2420 47 208 . 541 155 986 241 2846 Core 2809 | . 52 25 103 . . 5 . 31 . 139 646 30 . . 16 9 143 . 1610 Absorbed by Shields 288 | . . . . . . . . . . 53 162 . . . 51 . . . 22 Ignored by Resistances 411 | . . . . . . . . 104 . 242 65 . . . . . . . . Regen/Repaired (Parts) 88 | . . . . . . 9 . . . 14 65 . . . . . . . . Core Remaining (%) 75 | 100 . . . . 28 . . . . 79 . . . . 30 99 89 100 . Volleys Fired 217 | 4 32 5 87 . . . . 15 . 72 . . . . 2 . . . . Largest 2 | 2 2 2 2 . . . . 2 . 2 . . . . 1 . . . . Hottest 150 | 60 130 90 90 . . . . 120 . 150 . . . . . . . . . Shots Fired 284 | 8 58 8 113 . . . . 20 . 75 . . . . 2 . . . . Gun 114 | 8 55 6 26 . . . . . . 19 . . . . . . . . . Cannon 122 | . . . 56 . . . . 17 . 49 . . . . . . . . . Launcher 43 | . . 2 31 . . . . 3 . 7 . . . . . . . . . Special 5 | . 3 . . . . . . . . . . . . . 2 . . . . Kinetic 54 | 4 4 . 46 . . . . . . . . . . . . . . . . Thermal 165 | 4 54 . 22 . . . . 17 . 68 . . . . . . . . . Explosive 19 | . . 2 7 . . . . 3 . 7 . . . . . . . . . Electromagnetic 44 | . . 6 38 . . . . . . . . . . . . . . . . Robot Hit Streak 12 | 3 12 8 12 . . . . 7 . 7 . . . . 3 . . . . Robot Miss Streak 8 | 2 2 2 5 . . . . 3 . 8 . . . . . . . . . Penetration Max . | . . . . . . . . . . . . . . . . . . . . Secondary Targets 2 | . 1 . 1 . . . . . . . . . . . . . . . . Max Gunslinging Chain 1 | . 1 . 1 . . . . . . . . . . . . . . . . Shots Hit Robots 287 | 4 31 5 55 . . 6 1 17 . 44 34 . 22 . 23 3 32 6 4 Core Hits 278 | 2 18 8 40 . . 4 1 39 . 111 17 . 11 . 7 . 13 3 4 Critical Kills 2 | . . . . . . . . 2 . . . . . . . . . . . Critical Parts Destroyed . | . . . . . . . . . . . . . . . . . . . . Critical Strikes 19 | . . . . . . . . 6 . . 2 . 1 . 1 . 5 1 3 Meltdown 2 | . . . . . . . . 2 . . . . . . . . . . . Sever 3 | . . . . . . . . 3 . . . . . . . . . . . Impale 8 | . . . . . . . . 1 . . 2 . 1 . 1 . 2 . 1 Sunder 6 | . . . . . . . . . . . . . . . . . 3 1 2 Melee Attacks 543 | . . . . . . 41 24 33 . 45 58 8 28 10 144 41 69 20 22 Impact . | . . . . . . . . . . . . . . . . . . . . Slashing 34 | . . . . . . . . 31 . 1 . . 2 . . . . . . Piercing 390 | . . . . . . 41 24 2 . 44 58 8 26 10 99 31 36 . 11 Entropic 119 | . . . . . . . . . . . . . . . 45 10 33 20 11 Sneak Attacks 19 | . . . . . . 3 . 1 . 2 3 . 1 . 4 1 2 2 . Combat Hostiles 3 | . . . . . . . . 1 . 1 . . . . 1 . . . . Follow-up Attacks 21 | . . . . . . . . . . . . . . . 6 1 13 1 . Damage Inflicted 15695 | 48 489 253 1678 . . 289 86 1436 . 4394 1394 . 1015 . 1155 183 2205 718 352 Guns 1278 | 48 489 96 217 . . . . . . 428 . . . . . . . . . Cannons 1242 | . . . 493 . . . . 299 . 450 . . . . . . . . . Explosions 4561 | . . 157 959 . . . . 725 . 2720 . . . . . . . . . Melee 8575 | . . . . . . 289 86 412 . 796 1364 . 1015 . 1155 183 2205 718 352 Ramming 39 | . . . 9 . . . . . . . 30 . . . . . . . . Kinetic 583 | 25 42 . 516 . . . . . . . . . . . . . . . . Thermal 1916 | 23 447 . 269 . . . . 299 . 878 . . . . . . . . . Explosive 3928 | . . 157 326 . . . . 725 . 2720 . . . . . . . . . Electromagnetic 654 | . . 96 558 . . . . . . . . . . . . . . . . Impact . | . . . . . . . . . . . . . . . . . . . . Slashing 414 | . . . . . . . . 340 . 74 . . . . . . . . . Piercing 4862 | . . . . . . 289 86 72 . 722 1364 . 1015 . 644 110 493 . 67 Entropic 3299 | . . . . . . . . . . . . . . . 511 73 1712 718 285 Highest Corruption 17 | . . . . . . 1 1 1 1 1 17 17 17 17 4 . 3 . 14 Average Corruption 2 | . . . . . . 1 1 1 1 1 9 17 17 17 1 . 1 . 8 Corruption Purged 4 | . . . . . . . . . . 1 . . . . 3 . . . . Corruption Blocked . | . . . . . . . . . . . . . . . . . . . . Effects 168 | . . . . . . . 10 26 . 30 30 16 27 1 15 . 4 . 9 Message Errors 46 | . . . . . . . 2 8 . 5 13 5 4 . 7 . 1 . 1 Matter Fused 34 | . . . . . . . 1 6 . 5 5 4 7 1 2 . 1 . 2 Heat Flow Errors 19 | . . . . . . . 1 . . 8 2 1 2 . 2 . 2 . 1 Energy Discharges 24 | . . . . . . . 3 3 . 6 2 2 5 . 1 . . . 2 Parts Rejected 2 | . . . . . . . . . . . 2 . . . . . . . . Parts Fused 5 | . . . . . . . 2 1 . 1 . . 1 . . . . . . Data Loss (minor) 17 | . . . . . . . 1 2 . 3 3 1 6 . 1 . . . . Data Loss (major) 8 | . . . . . . . . 1 . 1 . 2 2 . . . . . 2 Misfires 4 | . . . . . . . . 4 . . . . . . . . . . . Alerts 4 | . . . . . . . . 1 . 1 . . . . 2 . . . . Misdirections 5 | . . . . . . . . . . . 3 1 . . . . . . 1 Overload Shots 2 | . . . . . . . . 1 . 1 . . . . . . . . . Effects 1 | . . . . . . . . . . 1 . . . . . . . . . Short Circuit 1 | . . . . . . . . . . 1 . . . . . . . . . Overflow Damage 1239 | . . . 19 . . 18 . 26 . 159 45 . 418 . 124 3 255 172 . Projectiles 56 | . . . 19 . . . . 16 . 21 . . . . . . . . . Explosions 10 | . . . . . . . . 10 . . . . . . . . . . . Melee 1173 | . . . . . . 18 . . . 138 45 . 418 . 124 3 255 172 . Knockbacks 9 | . . . 9 . . . . . . . . . . . . . . . . Impact . | . . . . . . . . . . . . . . . . . . . . Kinetic 9 | . . . 9 . . . . . . . . . . . . . . . . Secondary . | . . . . . . . . . . . . . . . . . . . . Self-Inflicted Damage 63 | . . . 21 . . . . . . 28 14 . . . . . . . . Shots 3 | . . . 2 . . . . . . 1 . . . . . . . . . Rammed 5 | . . . 1 . . . . . . . 4 . . . . . . . . Targets Rammed 5 | . . . 1 . . . . . . . 4 . . . . . . . . Kicked . | . . . . . . . . . . . . . . . . . . . . Crushed . | . . . . . . . . . . . . . . . . . . . . Highest Temperature 372 | . 372 141 257 . . . 259 102 . 357 188 216 231 . 269 . 245 . 138 Average Temperature 94 | . 118 71 49 . . . 137 23 . 95 76 111 105 . 123 . 69 . 86 Received Heat Transfer 1742 | . 171 42 416 . . 12 . 108 . 297 423 9 54 . 54 21 9 9 117 Effects 5 | . 1 . . . . . 1 . . 1 . . . . 2 . . . . Shutdowns 1 | . 1 . . . . . . . . . . . . . . . . . . Energy Bleed 2 | . . . . . . . 1 . . 1 . . . . . . . . . Interference 2 | . . . . . . . . . . . . . . . 2 . . . . Siege Activations . | . . . . . . . . . . . . . . . . . . . . Robots Corrupted 2 | . . . 2 . . . . . . . . . . . . . . . . Combat Hostiles 2 | . . . 2 . . . . . . . . . . . . . . . . Parts Fried 2 | . . . 2 . . . . . . . . . . . . . . . . Impact Corruptions . | . . . . . . . . . . . . . . . . . . . . Robots Melted 2 | . . . . . . . . 2 . . . . . . . . . . . Combat Hostiles 2 | . . . . . . . . 2 . . . . . . . . . . . Parts Melted 4 | . 3 . . . . . . 1 . . . . . . . . . . . Heat Transferred 1924 | 50 1024 . 100 . . . . . . 750 . . . . . . . . . Parts Sabotaged . | . . . . . . . . . . . . . . . . . . . . Parts Stolen . | . . . . . . . . . . . . . . . . . . . . Parts Stripped . | . . . . . . . . . . . . . . . . . . . . Power Chain Reactions 1 | . . . 1 . . . . . . . . . . . . . . . . Alert | -11 -10 -10 -10 -8 -8 -6 -6 -6 -6 -5 -5 -5 -5 -5 -4 -4 -3 -2 -1 ------- Run | Yrd Mat Min Sub Rec Scr Fac Low Low Dat Pro Fac Upp Upp War Pro Fac Res Res Acc Peak Influence 984 | 5 155 207 . 78 . 45 . . . . 984 . . . . 578 438 361 316 Initial 599 | . 3 45 . 64 . . . . . . 599 . . . . 152 195 174 216 Average 198 | 1 74 30 . 73 . 14 . . . . 716 . . . . 361 253 252 196 Maximum Alert Level 3 | . . 1 . . . . . . . . 3 . . . . 2 2 1 1 Low Security (%) 63 | 100 100 98 . 100 . 100 . . . . . . . . . 10 18 20 40 Level 1 20 | . . 1 . . . . . . . . . . . . . 67 75 79 59 Level 2 11 | . . . . . . . . . . . 65 . . . . 21 6 . . Level 3 4 | . . . . . . . . . . . 34 . . . . . . . . Level 4 . | . . . . . . . . . . . . . . . . . . . . Level 5 . | . . . . . . . . . . . . . . . . . . . . High Security . | . . . . . . . . . . . . . . . . . . . . Max Security . | . . . . . . . . . . . . . . . . . . . . Squads Dispatched 26 | . 3 1 . . . 3 . . . 1 8 . . . . 3 3 2 2 Investigation 10 | . 2 1 . . . 1 . . . 1 3 . . . . 1 1 . . Extermination 9 | . . . . . . 2 . . . . 2 . . . . . 2 1 2 Reinforcement 7 | . 1 . . . . . . . . . 3 . . . . 2 . 1 . Assault . | . . . . . . . . . . . . . . . . . . . . Garrison . | . . . . . . . . . . . . . . . . . . . . Intercept . | . . . . . . . . . . . . . . . . . . . . Searches Triggered . | . . . . . . . . . . . . . . . . . . . . Data Miner Redirects 1 | . . . . . . . . . . . 1 . . . . . . . . Construction Impeded 2 | . . . . . . . . . . . 1 . . . . 1 . . . Haulers Reinforced 1 | . . . . . . . . . . . . . . . . 1 . . . Active Scanning Responses . | . . . . . . . . . . . . . . . . . . . . Cargo Convoy Interrupts . | . . . . . . . . . . . . . . . . . . . . Stealth | -11 -10 -10 -10 -8 -8 -6 -6 -6 -6 -5 -5 -5 -5 -5 -4 -4 -3 -2 -1 --------- Run | Yrd Mat Min Sub Rec Scr Fac Low Low Dat Pro Fac Upp Upp War Pro Fac Res Res Acc Distress Signals 15 | . 2 2 . . . 1 . . . 1 4 . . 2 . 1 . 2 . Communications Jammed 13 | . . . . . . . . . . . . . . . . . . 6 7 Distress Signals 13 | . . . . . . . . . . . . . . . . . . 6 7 Times Spotted 262 | . 16 10 25 . . 7 . 16 . 42 38 5 3 . 5 19 28 16 32 Peak Tracking Total 17 | . 3 3 6 . . 4 . 10 . 5 6 9 2 . 2 6 10 8 17 Tactical Retreats 41 | . 2 . 1 . . 1 . 4 . 3 7 4 . . . 7 2 4 6 Traps | -11 -10 -10 -10 -8 -8 -6 -6 -6 -6 -5 -5 -5 -5 -5 -4 -4 -3 -2 -1 ------- Run | Yrd Mat Min Sub Rec Scr Fac Low Low Dat Pro Fac Upp Upp War Pro Fac Res Res Acc Traps Triggered 6 | . 2 . . . . 1 . . . . 2 . . . . . . . 1 Indirectly . | . . . . . . . . . . . . . . . . . . . . Trap Hack Attempts . | . . . . . . . . . . . . . . . . . . . . Triggered . | . . . . . . . . . . . . . . . . . . . . Disarmed . | . . . . . . . . . . . . . . . . . . . . Reprogrammed . | . . . . . . . . . . . . . . . . . . . . Reused 2 | . . . 1 . . . . . . . 1 . . . . . . . . Traps Extracted . | . . . . . . . . . . . . . . . . . . . . Installed 2 | . . . 1 . . . . . . . 1 . . . . . . . . Triggered 9 | . . . . . . . . . . . 1 . . 8 . . . . . Most Traps Carried 5 | . . . . . 2 1 1 1 1 1 1 . . . 5 5 . . . Machines | -11 -10 -10 -10 -8 -8 -6 -6 -6 -6 -5 -5 -5 -5 -5 -4 -4 -3 -2 -1 ---------- Run | Yrd Mat Min Sub Rec Scr Fac Low Low Dat Pro Fac Upp Upp War Pro Fac Res Res Acc Machines Disabled 11 | . . . 1 . . . . . . 1 2 . 2 . . 5 . . . Max in Single Turn 1 | . . . 1 . . . . . . 1 . . 1 . . 1 . . . Garrison Access 5 | . . . . . . 2 . . . . . . . . . 2 1 . . Machines Repaired . | . . . . . . . . . . . . . . . . . . . . Machines Dismantled . | . . . . . . . . . . . . . . . . . . . . Machines Sabotaged . | . . . . . . . . . . . . . . . . . . . . Overloaded Fab Kills . | . . . . . . . . . . . . . . . . . . . . Hacking | -11 -10 -10 -10 -8 -8 -6 -6 -6 -6 -5 -5 -5 -5 -5 -4 -4 -3 -2 -1 --------- Run | Yrd Mat Min Sub Rec Scr Fac Low Low Dat Pro Fac Upp Upp War Pro Fac Res Res Acc Machines Accessed 66 | . 5 1 4 4 7 7 . 1 4 1 9 . . 7 . 8 5 1 2 Terminals 25 | . 5 . . 2 . 3 . . . 1 7 . . . . 3 2 1 1 Fabricators 2 | . . . . . . 1 . . . . 1 . . . . . . . . Repair Stations 1 | . . . . . . . . . . . . . . . . . 1 . . Recycling Units 6 | . . . . 1 . 1 . . . . 1 . . . . 2 1 . . Scanalyzers 1 | . . . . . . . . . . . . . . . . 1 . . . Garrison Access 6 | . . . . . . 2 . . . . . . . . . 2 1 . 1 Total Hacks 216 | . 21 1 15 12 45 13 . 1 25 3 15 . . 16 . 27 13 2 7 Successful 154 | . 6 1 15 11 45 7 . 1 25 3 5 . . 16 . 13 6 . . Failed 62 | . 15 . . 1 . 6 . . . . 10 . . . . 14 7 2 7 Catastrophic 23 | . 2 . . . . 4 . . . . 5 . . . . 4 5 1 2 Database Lockouts . | . . . . . . . . . . . . . . . . . . . . Manual 71 | . 21 . . . . 8 . . . . 11 . 1 1 . 12 10 2 5 Terminals 69 | . 21 . . 4 . 7 . . . 3 11 . . . . 8 8 2 5 Fabricators 3 | . . . . . . 1 . . . . 2 . . . . . . . . Repair Stations 2 | . . . . . . . . . . . . . . . . . 2 . . Recycling Units 12 | . . . . 3 . 1 . . . . 2 . . . . 4 2 . . Scanalyzers 9 | . . . . . . . . . . . . . . . . 9 . . . Garrison Access 13 | . . . . . . 4 . . . . . . . . . 6 1 . 2 Terminal Hacks 120 | . 2 1 15 8 45 1 . 1 25 3 2 . . 16 . . 1 . . Record 90 | . . . 12 5 44 . . . 11 3 . . . 15 . . . . . Part Schematic 8 | . . . . . . . . . 8 . . . . . . . . . . Robot Schematic 3 | . . . . . . . . . 3 . . . . . . . . . . Robot Analysis 1 | . 1 . . . . . . . . . . . . . . . . . . Prototype ID Bank 4 | . . . . 1 . . . . 3 . . . . . . . . . . Open Door 4 | . . 1 1 . . . . 1 . . . . . 1 . . . . . Open DSF 1 | . . . . . . . . . . . 1 . . . . . . . . Branch Access Points 2 | . . . . . . 1 . . . . 1 . . . . . . . . Emergency Access Points 1 | . . . . 1 . . . . . . . . . . . . . . . Terminal Index 2 | . 1 . . . . . . . . . . . . . . . 1 . . Zone Layout 1 | . . . . 1 . . . . . . . . . . . . . . . Derelict Proto ID Bank 2 | . . . 1 . 1 . . . . . . . . . . . . . . Release Object 1 | . . . 1 . . . . . . . . . . . . . . . . Fabricator Hacks 1 | . . . . . . . . . . . 1 . . . . . . . . Load Schematic 1 | . . . . . . . . . . . 1 . . . . . . . . Repair Station Hacks 1 | . . . . . . . . . . . . . . . . . 1 . . Scan Component 1 | . . . . . . . . . . . . . . . . . 1 . . Recycling Unit Hacks 3 | . . . . 3 . . . . . . . . . . . . . . . Report Inventory 1 | . . . . 1 . . . . . . . . . . . . . . . Retrieve Matter 2 | . . . . 2 . . . . . . . . . . . . . . . Scanalyzer 9 | . . . . . . . . . . . . . . . . 9 . . . Insert Component 4 | . . . . . . . . . . . . . . . . 4 . . . Analyze 5 | . . . . . . . . . . . . . . . . 5 . . . Garrison Access Hacks 5 | . . . . . . 2 . . . . . . . . . 2 1 . . Seal Access 5 | . . . . . . 2 . . . . . . . . . 2 1 . . Unauthorized Hacks 15 | . 4 . . . . 4 . . . . 2 . . . . 2 3 . . Terminals 11 | . 4 . . . . 3 . . . . 1 . . . . 1 2 . . Botnet 11 | . 4 . . . . 3 . . . . 1 . . . . 1 2 . . Fabricators . | . . . . . . . . . . . . . . . . . . . . Repair Stations 4 | . . . . . . 1 . . . . 1 . . . . 1 1 . . Recycling Units . | . . . . . . . . . . . . . . . . . . . . Scrapoids 4 | . . . . . . 1 . . . . 1 . . . . 1 1 . . Scanalyzers . | . . . . . . . . . . . . . . . . . . . . Garrison Access . | . . . . . . . . . . . . . . . . . . . . Data Cores Recovered . | . . . . . . . . . . . . . . . . . . . . Used . | . . . . . . . . . . . . . . . . . . . . Hacking Detections 32 | . 5 . . 3 . 5 . . . 1 8 . . . . 5 2 1 2 Full Trace Events 5 | . 2 . . . . . . . . 1 2 . . . . . . . . Feedback Events . | . . . . . . . . . . . . . . . . . . . . Feedback Blocked . | . . . . . . . . . . . . . . . . . . . . Robot Schematics Acquired 3 | . . . . . . . . . 3 . . . . . . . . . . Robots Built . | . . . . . . . . . . . . . . . . . . . . Authchips . | . . . . . . . . . . . . . . . . . . . . Time . | . . . . . . . . . . . . . . . . . . . . Total Robot Build Rating . | . . . . . . . . . . . . . . . . . . . . Part Schematics Acquired 12 | . . . . . . . . . 8 . . . . . . 4 . . . Parts Built . | . . . . . . . . . . . . . . . . . . . . Authchips . | . . . . . . . . . . . . . . . . . . . . Time . | . . . . . . . . . . . . . . . . . . . . Total Part Build Rating . | . . . . . . . . . . . . . . . . . . . . Parts Repaired . | . . . . . . . . . . . . . . . . . . . . Time . | . . . . . . . . . . . . . . . . . . . . Parts Recycled . | . . . . . . . . . . . . . . . . . . . . Recycled Matter . | . . . . . . . . . . . . . . . . . . . . Retrieved Matter . | . . . . . . . . . . . . . . . . . . . . Retrieved Components . | . . . . . . . . . . . . . . . . . . . . Parts Scanalyzed 4 | . . . . . . . . . . . . . . . . 4 . . . Part Schematics Acquired 4 | . . . . . . . . . . . . . . . . 4 . . . Parts Damaged . | . . . . . . . . . . . . . . . . . . . . Bothacking | -11 -10 -10 -10 -8 -8 -6 -6 -6 -6 -5 -5 -5 -5 -5 -4 -4 -3 -2 -1 ------------ Run | Yrd Mat Min Sub Rec Scr Fac Low Low Dat Pro Fac Upp Upp War Pro Fac Res Res Acc Used RIF Installer . | . . . . . . . . . . . . . . . . . . . . Robots Hacked . | . . . . . . . . . . . . . . . . . . . . Non-combat . | . . . . . . . . . . . . . . . . . . . . Combat . | . . . . . . . . . . . . . . . . . . . . Robot Hacks Applied . | . . . . . . . . . . . . . . . . . . . . Relay Couplers Released . | . . . . . . . . . . . . . . . . . . . . Fabnet Peak Effective % . | . . . . . . . . . . . . . . . . . . . . Robots Rewired 4 | . . . . . . . . . . . . . 4 . . . . . . Allies Hacked 1 | . . . . . . . . . . . 1 . . . . . . . . Hacks Repelled . | . . . . . . . . . . . . . . . . . . . . Allies | -11 -10 -10 -10 -8 -8 -6 -6 -6 -6 -5 -5 -5 -5 -5 -4 -4 -3 -2 -1 -------- Run | Yrd Mat Min Sub Rec Scr Fac Low Low Dat Pro Fac Upp Upp War Pro Fac Res Res Acc Total Allies 24 | . . 2 . . . 5 . . . . 8 . 4 . . 5 . . . Largest Group 5 | . . 2 1 . . 5 1 1 . . 5 . 4 1 1 5 . . . Highest-Rated Group 244 | . . 46 28 . . 140 28 28 . . 244 . 100 25 25 235 . . . Highest-Rated Ally 52 | . . 31 28 . . 28 28 28 . . 52 . 25 25 25 47 . . . Total Orders 16 | . . . . . . . 4 . . 7 . 3 2 . . . . . . STAY 2 | . . . . . . . 2 . . . . . . . . . . . . FOLLOW 2 | . . . . . . . 2 . . . . . . . . . . . . EXPLORE 11 | . . . . . . . . . . 6 . 3 2 . . . . . . RETURN 1 | . . . . . . . . . . 1 . . . . . . . . . Ally Attacks 162 | . . 24 2 . . 21 . 1 . . 77 . 2 . . 35 . . . Total Damage 3565 | . . 210 . . . 325 . 24 . . 1759 . 77 . . 1170 . . . Kills 31 | . . 9 . . . 3 . . . . 11 . 1 . . 7 . . . Allies Corrupted 1 | . . . . . . . . . . . 1 . . . . . . . . Allies Melted 2 | . . . . . . . . . . . . . . 2 . . . . . Intel | -11 -10 -10 -10 -8 -8 -6 -6 -6 -6 -5 -5 -5 -5 -5 -4 -4 -3 -2 -1 ------- Run | Yrd Mat Min Sub Rec Scr Fac Low Low Dat Pro Fac Upp Upp War Pro Fac Res Res Acc Robot Analysis Total 1 | . 1 . . . . . . . . . . . . . . . . . . Derelict Logs Recovered 18 | . . 2 1 . 1 . 3 3 . 3 . 2 1 . 2 . . . . Drone Launches 11 | . . . . . . . . . . 6 . 3 2 . . . . . . Drone Recoveries 6 | . . . . . . . . . . 4 . 2 . . . . . . . Exploration | -11 -10 -10 -10 -8 -8 -6 -6 -6 -6 -5 -5 -5 -5 -5 -4 -4 -3 -2 -1 ------------- Run | Yrd Mat Min Sub Rec Scr Fac Low Low Dat Pro Fac Upp Upp War Pro Fac Res Res Acc Turns Passed 45762 | 80 1051 1438 5318 106 9778 1388 2813 3966 93 13660 990 318 608 593 1474 628 475 253 732 Spaces Moved 25545 | 62 661 805 1563 85 4891 1207 1568 2015 76 4854 1153 288 468 909 2274 1175 505 325 661 Core 453 | 19 2 . . . 23 . . . . . 263 . 13 . . . . . 133 Treads 2415 | . 74 805 483 . 462 . . 507 36 . 48 . . . . . . . . Legs 29 | . . . . . . . . . . . . . . . . . . . 29 Wheels 15699 | 43 585 . 1080 85 4406 1207 1568 1508 40 4854 323 . . . . . . . . Hover . | . . . . . . . . . . . . . . . . . . . . Flight 6949 | . . . . . . . . . . . 519 288 455 909 2274 1175 505 325 499 Fastest Speed 30 | 50 95 160 105 120 80 90 90 90 90 90 40 40 40 40 40 32 30 32 42 Average Speed 93 | 89 111 160 133 120 131 90 90 107 123 98 67 42 46 53 43 32 31 39 48 Slowest Speed 600 | 100 550 160 240 120 600 90 90 160 160 100 525 80 150 80 80 32 32 97 180 Overloaded Moves . | . . . . . . . . . . . . . . . . . . . . Propulsion Burnouts . | . . . . . . . . . . . . . . . . . . . . Robots Hopped 3 | . . . . . . . . . . . 1 . . . . . 2 . . Cave-ins Triggered . | . . . . . . . . . . . . . . . . . . . . Exploration Rate (%) 60 | 4 89 98 73 24 95 28 88 91 68 99 27 72 66 90 96 39 19 10 25 Regions Visited 19 Branch Regions 12 Pre-discovered Areas 4 | . . . 1 . . . . 1 1 . . . . 1 . . . . . Known Exits Taken 10 | . . . 1 . . 1 1 1 1 1 1 1 . . 1 . . 1 . Unknown Exits Taken 9 | 1 1 1 . 1 1 . . . . . . . 1 1 . 1 1 . . Scrap Searched 29 | . . 1 6 . 5 . . 5 . 2 . 2 4 . 4 . . . . Spaces Dug 357 | . 3 . 13 . . 25 18 59 . 61 15 8 . 5 81 25 18 11 15 Terrain Destroyed 648 | . 3 10 46 . . 25 18 121 . 247 15 8 . 5 81 25 18 11 15 Melee 257 | . . . . . . 25 18 16 . 20 15 8 . 5 81 25 18 11 15 Projectile 72 | . 3 . 17 . . . . 11 . 41 . . . . . . . . . AOE 319 | . . 10 29 . . . . 94 . 186 . . . . . . . . . Terrain Rammed . | . . . . . . . . . . . . . . . . . . . . Walls Destroyed . | . . . . . . . . . . . . . . . . . . . . Machines Disabled . | . . . . . . . . . . . . . . . . . . . . Actions | -11 -10 -10 -10 -8 -8 -6 -6 -6 -6 -5 -5 -5 -5 -5 -4 -4 -3 -2 -1 --------- Run | Yrd Mat Min Sub Rec Scr Fac Low Low Dat Pro Fac Upp Upp War Pro Fac Res Res Acc Total 46521 | 75 913 950 4690 89 8273 1423 2916 3737 75 13602 1266 470 822 1007 2602 1382 749 431 1049 Wait 19557 | . 150 117 2988 5 3302 140 1307 1658 . 8525 2 161 242 30 188 145 183 79 335 Move 25521 | 61 660 804 1563 84 4890 1206 1567 2014 75 4853 1150 287 467 908 2273 1174 500 324 661 Hop 3 | . . . . . . . . . . . 1 . . . . . 2 . . Pick Up 159 | 1 23 8 10 . 34 9 1 1 . 25 12 1 8 8 8 7 2 . 1 Fast Attach 84 | 8 6 . 1 . 2 . 1 . . 1 7 4 12 18 11 6 2 4 1 Attach 84 | . . 1 11 . 2 7 . . . 21 12 5 2 4 4 1 5 2 7 Detach 59 | 1 3 . 5 . 2 . . . . 13 3 4 2 9 1 2 4 3 7 Swap 126 | . 19 6 16 . 2 9 13 14 . 26 6 . 1 2 2 4 3 1 2 Drop 181 | . 20 9 8 . 37 3 3 2 . 20 10 . 18 18 14 12 1 2 4 Fire 217 | 4 32 5 87 . . . . 15 . 72 . . . . 2 . . . . Melee 457 | . . . . . . 41 24 33 . 45 58 8 26 10 99 31 47 16 19 Ram 4 | . . . . . . . . . . . 4 . . . . . . . . Kick . | . . . . . . . . . . . . . . . . . . . . Crush . | . . . . . . . . . . . . . . . . . . . . Escape Stasis 20 | . . . . . . 8 . . . . . . . . . . . . 12 Rewire 46 | . . . . . 2 . . . . . . . 44 . . . . . . Trap 2 | . . . 1 . . . . . . . 1 . . . . . . . . Miscellaneous 1 | . . . . . . . . . . 1 . . . . . . . . . Route ------- -11/Scrapyard -10/Materials (discovered 4 exits: [*Mat x2] / *Min x2) -10/Mines (discovered 3 exits: [*Mat x2] / *Sub) -10/Subcaves (discovered 3 exits: *Mat x2 / *Rec) -8/Recycling -8/Scraptown (discovered 2 exits: *Fac x2) -6/Factory (discovered 5 exits: Fac / *Low x2 / Ext x2) -6/Lower Caves -6/Lower Caves (discovered 2 exits: *Fac / *Dat) -6/Data Miner -5/Proximity Caves -5/Factory (discovered 4 exits: *Fac x2 / *Upp x2) -5/Upper Caves -5/Upper Caves -5/Warlord -4/Proximity Caves -4/Factory -3/Research (discovered 2 exits: *Res / [Tes]) -2/Research -1/Access History --------- Turn | Location | Event 46 | -11/Scrapyard | Discovered new exit (range 12) 81 | -11/Scrapyard | Entered Materials 308 | -10/Materials | Build established: Mutant 327 | -10/Materials | Discovered new exit (range 7) 581 | -10/Materials | Discovered new exit (range 13) 681 | -10/Materials | Discovered new exit (range 5) 968 | -10/Materials | Discovered new exit (range 8) 1132 | -10/Materials | Entered Mines 1151 | -10/Mines | Met a Derelict shopkeep closing up shop 1469 | -10/Mines | Assembled infested the area 1474 | -10/Mines | Assisted by a Guerilla fighting off Assembled 1903 | -10/Mines | Joined a pair of Derelicts in attacking an 0b10 outpost 2031 | -10/Mines | Discovered new exit (range 6) 2129 | -10/Mines | Learned 2 Materials zone layouts 2441 | -10/Mines | Discovered new exit (range 7) 2560 | -10/Mines | Discovered new exit (range 7) 2570 | -10/Mines | Entered Subcaves 2570 | -10/Subcaves | Accompanied by 1 ally 2575 | -10/Subcaves | Led the pair of lost Derelicts to an unsafe place 4566 | -10/Subcaves | Shifting Twisted Machinery released Shrapnel Trap 4830 | -10/Subcaves | A Subdweller sparked back to life 4830 | -10/Subcaves | A Subdweller sparked back to life 4830 | -10/Subcaves | A Subdweller sparked back to life 4852 | -10/Subcaves | Shifting Twisted Machinery released Flamer 4868 | -10/Subcaves | Lost 3 parts (1n2w) 4891 | -10/Subcaves | Found Prototype Flight Unit 5416 | -10/Subcaves | Visited Clippyterm 5419 | -10/Subcaves | Identified exit to Materials 5419 | -10/Subcaves | Identified exit to Recycling 6212 | -10/Subcaves | Core integrity fell below 50% 6291 | -10/Subcaves | Shifting Twisted Machinery released Mak. Power Source 6292 | -10/Subcaves | Shifting Twisted Machinery released Riot Gun 7269 | -10/Subcaves | Shifting Twisted Machinery released Flamer 7294 | -10/Subcaves | Learned location of Recycling (-8) 7319 | -10/Subcaves | Visited 4L-MR0's lab 7369 | -10/Subcaves | Lost 3 parts (1p1n1u) 7383 | -10/Subcaves | Identified Flightbrick 7403 | -10/Subcaves | Found Powered Cannon 7778 | -10/Subcaves | Attached Powered Cannon, gained temporary slot: Power 7888 | -10/Subcaves | Entered Recycling 7889 | -8/Recycling | Joined Warlord attack on 0b10 via Recycling 7961 | -8/Recycling | Scanned before Scraplab entrance 7979 | -8/Recycling | Entered Scraplab 7992 | -8/Recycling | Discovered new exit (range 3) 7994 | -8/Recycling | Entered Scraptown 8104 | -8/Scraptown | 10 allies followed out of Recycling 8200 | -8/Scraptown | Discovered new exit (range 5) 8274 | -8/Scraptown | Scanned Subdweller tech in exchange for log data 8278 | -8/Scraptown | Learned 12 Factory zone layouts 8374 | -8/Scraptown | Visited SPCMW 8412 | -8/Scraptown | Visited Cyclists 8443 | -8/Scraptown | Visited Spacefarers 8706 | -8/Scraptown | Visited Assassins FH 8718 | -8/Scraptown | Visited TADAMA 8774 | -8/Scraptown | Visited UFD Registry 8774 | -8/Scraptown | Registered with UFD as "Shadowmind" 8790 | -8/Scraptown | Visited Fellowship of the Rings 8821 | -8/Scraptown | Visited Comm Corps 8948 | -8/Scraptown | Visited Supply Room 8999 | -8/Scraptown | Visited Research Penetration Think Tank 9030 | -8/Scraptown | Visited Modified Component R&D 9088 | -8/Scraptown | Visited Scrap Suit Storage 9203 | -8/Scraptown | Visited Science Guys 9251 | -8/Scraptown | Visited Chapter 10 9338 | -8/Scraptown | Delivered Scrap Shield to a Scientist 9485 | -8/Scraptown | Visited Science Testing Area 9505 | -8/Scraptown | Visited Derelict Rescue Squad 9512 | -8/Scraptown | Found DRS Beacon 9997 | -8/Scraptown | Discovered new exit (range 5) 13950 | -8/Scraptown | Entered Cyclist Reading Room 15595 | -8/Scraptown | Found Scrap Suit 15597 | -8/Scraptown | Found Scrap Suit 17772 | -8/Scraptown | Entered Factory 17772 | -6/Factory | Evolved 8 slots: Propulsion x2, Utility x5, Weapon x1 17773 | -6/Factory | Identified exit to Factory 17867 | -6/Factory | Found Prototype Launcher 17867 | -6/Factory | Identified Scatter Rocket Array 17869 | -6/Factory | Found Scatter Rocket Array 18074 | -6/Factory | Build established: Scrapper 18934 | -6/Factory | Identified exit to Lower Caves 18934 | -6/Factory | Identified exit to Extension 18983 | -6/Factory | Scrapoid reinforcements arrived 19087 | -6/Factory | Lost 3 allies 19160 | -6/Factory | Entered Lower Caves 19160 | -6/Lower Caves | Accompanied by 1 ally 19162 | -6/Lower Caves | UFD Scientist delivered a prototype 19166 | -6/Lower Caves | Found Prototype Protection 19166 | -6/Lower Caves | Identified Enh. Scrap Shield 19175 | -6/Lower Caves | Learned Factory garrison access intel 19489 | -6/Lower Caves | Learned Factory terminal intel 21204 | -6/Lower Caves | Encountered a Warlord checkpoint 21207 | -6/Lower Caves | Discovered new exit (range 8) 21972 | -6/Lower Caves | Identified exit to Lower Caves 21973 | -6/Lower Caves | Entered another Lower Caves area 21973 | -6/Lower Caves | Accompanied by 1 ally 21975 | -6/Lower Caves | Attracted the attention of an 0b10 checkpoint 22952 | -6/Lower Caves | Discovered exit to Factory (range 15) 23981 | -6/Lower Caves | Learned Factory security intel 24116 | -6/Lower Caves | Identified exit to Data Miner 25056 | -6/Lower Caves | Attracted the attention of an 0b10 base 25939 | -6/Lower Caves | Entered Data Miner 25939 | -6/Data Miner | Discovered new exit (range 6) 25970 | -6/Data Miner | Met Data Miner 25997 | -6/Data Miner | Learned location of Section 7 (-2) 25997 | -6/Data Miner | Acquired the access code to Warlord's prototype stash 26012 | -6/Data Miner | Received God Mode back door access code from Data Miner 26031 | -6/Data Miner | Identified exit to Proximity Caves 26032 | -6/Data Miner | Entered Proximity Caves 26035 | -5/Proximity Caves | Spotter reported a threat 26241 | -5/Proximity Caves | Spotter reported a threat 26317 | -5/Proximity Caves | Found DCF Scrap (11 items) 26394 | -5/Proximity Caves | Learned 8 Factory zone layouts 26656 | -5/Proximity Caves | Build established: Skirmisher 27905 | -5/Proximity Caves | Build established: Mutant 28089 | -5/Proximity Caves | Learned Factory garrison access intel 28472 | -5/Proximity Caves | Discovered exit to Factory (range 14) 28559 | -5/Proximity Caves | Learned Factory stockpile data 29532 | -5/Proximity Caves | Build established: Scrapper 31660 | -5/Proximity Caves | Spotted B-75 Beast 31784 | -5/Proximity Caves | Attracted the attention of an 0b10 checkpoint 31884 | -5/Proximity Caves | Attracted the attention of an 0b10 base 31909 | -5/Proximity Caves | Learned 6 Lower Caves zone layouts 32479 | -5/Proximity Caves | Activated DRS Beacon 32996 | -5/Proximity Caves | Build established: Mutant 34046 | -5/Proximity Caves | Build established: Scrapper 39692 | -5/Proximity Caves | Entered Factory 39692 | -5/Factory | Evolved 2 slots: Power x1, Utility x1 39693 | -5/Factory | Identified exit to Upper Caves 39693 | -5/Factory | Identified exit to Factory 39696 | -5/Factory | Loaded intel: 26 terminal locations 39697 | -5/Factory | Loaded intel: 4 garrison access locations 39894 | -5/Factory | Allied Derelicts emerged from ambush trap array 39901 | -5/Factory | Identified exit to DSF 39984 | -5/Factory | P-70 Sage assimilated allied PT-RQB(g) 40148 | -5/Factory | Lost 7 parts (2p4u1w) 40298 | -5/Factory | System corruption reached 10% 40319 | -5/Factory | Released all parts (7) 40344 | -5/Factory | Lost 5 parts (2p1n1u1w) 40360 | -5/Factory | Core integrity fell below 50% 40366 | -5/Factory | Build established: Mutant 40387 | -5/Factory | Attached Flightbrick, gained temporary slots: Utility x3 40452 | -5/Factory | Scrapoids reinforcements arrived? 40604 | -5/Factory | Discovered exit to Factory (range 15) 40643 | -5/Factory | Spotted B-75 Beast 40682 | -5/Factory | Incoming investigation squad redirected 40682 | -5/Factory | Entered Upper Caves 40787 | -5/Upper Caves | Learned Factory trap positions 40789 | -5/Upper Caves | Identified exit to Upper Caves 41000 | -5/Upper Caves | Entered another Upper Caves area 41007 | -5/Upper Caves | Attacked by a delusional Derelict stockpiling Unaware 41312 | -5/Upper Caves | Attracted the attention of an 0b10 checkpoint 41314 | -5/Upper Caves | Learned Factory emergency access door positions 41349 | -5/Upper Caves | Lost 3 allies 41556 | -5/Upper Caves | Found DCF Scrap (12 items) 41556 | -5/Upper Caves | Discovered new exit (range 9) 41582 | -5/Upper Caves | Acquired the password to a Derelict Tinkerer's latest research 41586 | -5/Upper Caves | Found Prototype Special Weapon 41586 | -5/Upper Caves | Identified Molecular Deconstructor 41608 | -5/Upper Caves | Entered Warlord 41608 | -5/Warlord | Accompanied by 1 ally 41636 | -5/Warlord | System corruption cleaned by Quarantine Array 41676 | -5/Warlord | Warlord's base attacked by MAIN.C 41765 | -5/Warlord | Learned Research stockpile data 41766 | -5/Warlord | Learned 4 Research zone layouts 41766 | -5/Warlord | Learned 4 Testing zone layouts 41766 | -5/Warlord | Learned 4 Command zone layouts 41767 | -5/Warlord | Learned Research security intel 41767 | -5/Warlord | Learned Factory repair station intel 41767 | -5/Warlord | Learned Factory recycling unit intel 41984 | -5/Warlord | Rebuked by Warlord 42009 | -5/Warlord | Found Prototype Piercing Weapon 42009 | -5/Warlord | Identified Vortex Lance 42012 | -5/Warlord | Found Vortex Lance 42015 | -5/Warlord | Found Prototype Energy Gun 42015 | -5/Warlord | Identified Vortex Shotgun 42018 | -5/Warlord | Found Vortex Shotgun 42026 | -5/Warlord | Warlord forces counterattacked 42047 | -5/Warlord | Opened Warlord's prototype stash 42049 | -5/Warlord | Found Prototype Hackware 42049 | -5/Warlord | Identified Ghost Barrier 42056 | -5/Warlord | Found Prototype Device 42056 | -5/Warlord | Identified Exp. Cloaking Device 42062 | -5/Warlord | Found Prototype Reactor 42065 | -5/Warlord | Identified Vortex Chain Reactor 42174 | -5/Warlord | Discovered new exit (range 12) 42201 | -5/Warlord | Entered Proximity Caves 42201 | -4/Proximity Caves | Accompanied by 1 ally 42207 | -4/Proximity Caves | Spotter reported a threat 42227 | -4/Proximity Caves | Attracted the attention of an 0b10 checkpoint 42516 | -4/Proximity Caves | Learned Research stockpile data 42658 | -4/Proximity Caves | Build established: Scavenger-Gladiator 42840 | -4/Proximity Caves | Discovered exit to Factory (range 3) 43448 | -4/Proximity Caves | Found Alien Artifact 43448 | -4/Proximity Caves | Identified Core Expander 43448 | -4/Proximity Caves | Installed Core Expander, added new Utility slot 43600 | -4/Proximity Caves | Learned Research stockpile data 43675 | -4/Proximity Caves | Entered Factory 43675 | -4/Factory | Evolved 2 slots: Propulsion x2 43676 | -4/Factory | Loaded intel: 107 trap records 43678 | -4/Factory | Loaded intel: 6 repair station locations 43679 | -4/Factory | Loaded intel: 6 recycling unit locations 43680 | -4/Factory | Loaded intel: 4 garrison access locations 43898 | -4/Factory | Spotted B-86 Titan 43938 | -4/Factory | Scrapoids reinforcements arrived? 44103 | -4/Factory | Build established: Hacker-Ninja 44153 | -4/Factory | Lost 3 allies 44246 | -4/Factory | Discovered new exit (range 24) 44303 | -4/Factory | Entered Research 44303 | -3/Research | Evolved 2 slots: Utility x2 44426 | -3/Research | Discovered new exit (range 22) 44765 | -3/Research | Discovered new exit (range 16) 44768 | -3/Research | Lost 3 parts (1n1u1w) 44778 | -3/Research | Entered another Research area 44778 | -2/Research | Evolved 1 slot: Utility x1 45005 | -2/Research | Discovered new exit (range 22) 45030 | -2/Research | Identified exit to Access 45031 | -2/Research | Entered Access 45323 | -1/Access | Spotted B-99 Colossus 45669 | -1/Access | System corruption reached 10% 45689 | -1/Access | Lost 12 parts (3p2n7u) 45704 | -1/Access | Core integrity fell below 50% 45747 | -1/Access | Core integrity fell below 20% 45753 | -1/Access | Lost 3 parts (3u) 45763 | -1/Access | Destroyed by S-43 Plague with Heavy Machine Gun Last Messages --------------- 45672_ P-80 Master resets P-80 Master, system corruption cleaned. 45689_ UOHI%WXO918X7EDEXEDN3&/G PJCAYUO T 45693_ Adv. Signal Interpreter destroyed. 45696_ Critical hit (Burn: +37). 45703_ Knocked back. 45703_ Penetrated by Slug. 45706_ System corrupted: Matter fused (-5). 45706_ Knocked back. 45706_ Slug penetrates Wall. 45706_ Penetrated by Slug. 45706_ Imp. System Shield destroyed. 45706_ Slug penetrates Wall. 45722_ System corrupted: Substantial component data lost. 45722_ Adv. Melee Analysis Suite destroyed. 45728_ Slug penetrates Wall. 45728_ Slug penetrates Earth. 45730_ The unstable cave ceiling collapses. 45739_ System corrupted: Heat flow error (+190). 45748_ S-43 Plague suffers critical hit (Destroy). 45761_ System corrupted: Energy discharge (-37). Map ----- +----------------------------------------------------+ | #??#? ?? "???" ???????????# ############## | | #????? ??"" ?"? ????##?????# #?? " ? # | | #?????? ???? ?###?????#### # ? """ # | | #????? ????? ??????????#???# # """ ? # | | #????????? ?? ???#?#???#???# # ? " ? ?# | | #????? ??? ??? ?????##??#??# #?? ?? # | | #???????????? ? #???#?#????# # ?? ?? + | | #???????????????#??###??#??# # ?? ? # | | #????????? ???? ##???#?#???# #? ?? ? # | | ???????#?#????############## #? ?? ? # | | ????????????? #? ? # | | ????? ??????? #? ? # | | ???????????? # ? ?# | | ????? ???????? ##########?### | | ?????????????? ###?#####?#### | | ??????????????? #########??### | | ??????????????? ############## | | ?????????????####+########## | | ????????????? ?? ???# | | ??????????????? ??????# | | ???????????????"" ?? ??# | | ????????????????? ????# | | ??????????????????? ???# | | ????????????????????? #?## | | ??????????????????????? ;##;###+################# | | ????????????????????????#@ s s #???###??### | | ????????????????????????# ss #?########?# | | ????????????????????????# s ####?#####?# | | ????????????????????????# ##?##?###### | | ????????????????????????# #???#?#???## | | ????????????????????????# #?#???###### | | ????????????????????????# #####?#?#?### | | ????????????????????????# """""" ##??#?####??# | | ????????????????????????# """""" ##########?## | | ????????????????????????# """""" #?########### | | ????????????????????????# """??? #???####?#### | | ????????????????????????# "?????? #???????##### | | ????????????????????????######???????#?#?####?#### | | ???????????????????????????????????????##?#######? | | ???????????????????????????????????????##?##??##?# | | ???????????????????????????????????????####?#####? | | ?????????????????????????????????????????##?#?#??# | | ??????????????????????????????????????#?#?#?##?### | | ???????????????????????????????????????#???????### | | ????????????????????????????????????????#???#???## | | ???????????????????????????????????????#??????#?## | | ????????????????????????????????????????##????#?#? | | ????????????????????????????????????????????##???? | | ??????????????????????????????????????????#??###?? | | ??????????????????????????????????????????#?#??#?? | +----------------------------------------------------+ Best States ------------- Heat Dissipation 52 Coolant Potential 120 Energy Generation 37 Energy Capacity 765 Matter Stores 300 Matter Capacity 300 Sight Range 20 Robot Scan Range 16 Terrain Scan Range 24 Terrain Scan Density 135 ECM Strength 2 Jamming Range 16 Cloak Strength 4 Power Amplification 60 Additional Mass Support 12 Armor Coverage 800 Resistance: KI 25 Point Defense Rating 160 Evasion (%) 72 Melee Accuracy 16 Target Analysis 9 Recoil Reduction 2 Energy Filtering 50 Defensive Hacking 32 Trap Extractor Capacity 8 Item Schematics ----------------- Combat Drone Bay | -6/Data Miner | Free Lgt. Regenerative Plating | -6/Data Miner | Free Cld. Gravmag System | -6/Data Miner | Free Prc. Matter Filter | -6/Data Miner | Free Cld. Plasma Rifle | -6/Data Miner | Free Myomer Leg | -6/Data Miner | Free Point Defense Array | -6/Data Miner | Free Matter Neutralizer | -6/Data Miner | Free Imp. Energy Mantle | -4/Factory | Scanalyzed Arm. Huge Wheel | -4/Factory | Scanalyzed Adv. Power Amplifier | -4/Factory | Scanalyzed Mni. Drone Bay | -4/Factory | Scanalyzed Robot Schematics ------------------ Y-64 Sentinel | -6/Data Miner | Free S-27 Virus | -6/Data Miner | Free A-15 Conveyor | -6/Data Miner | Free Fabricated ------------ Nothing Alien Tech Used ----------------- Core Expander Achievements -------------- Denied? Knowing Is Half The Battle Total Silence Challenges ------------ None Game ------ Seed SensorCoolingMembrane Manual? 0 Play Time 07:10:30 Cumulative 64.9 hours Start 2024.08.17 @ 20:39:22 End 2024.08.18 @ 13:08:47 Sessions 3 Manual Loads 0 Difficulty Rogue Special Mode None Game No. 62 Rogue 62 Adventurer 0 Explorer 0 Win Type - Total 0 Types 0/0/0/0/0/0/0/0/0 Lore% 44 Gallery% 48 Achievement% 37 Wizard Run 0 Options --------- Layout 2 ASCII 0 Keyboard 1 Movement Vi Keybinds 0 Fullscreen 1 Font 32/SmallcapsGlow Map View 77x44 Zoom Use 0% Tactical HUD 1 Map Filters NONE Filters NONE Steam 1 RUN: a94f482d-95bf-444f-be8e-29f035c28857